bitfinex-derivatives/quotes_BTCF0:USTF0_20241120
["timestamp","ask_amount","ask_price","bid_price","bid_amount"]
[1732091485942,0.19023315,93049.0,93048.0,0.3608]
[1732091487234,0.09463315,93049.0,93048.0,0.3608]
[1732091488132,0.053677,93051.0,93048.0,0.3608]
[1732091488635,0.0956,93053.0,93048.0,0.3608]
[1732091489544,0.0956,93053.0,93046.0,0.05368]
[1732091489752,0.0956,93053.0,93047.0,0.3608]
[1732091490049,0.0956,93053.0,93047.0,0.414479]
[1732091490233,0.0956,93053.0,93051.0,0.053677]
[1732091495636,0.09644,93054.0,93047.0,0.3608]
[1732091495844,0.09644,93054.0,93053.0,0.053676]
[1732091503050,0.03622186,93054.0,93053.0,0.053676]
[1732091503357,0.13078797,93054.0,93053.0,0.053676]
[1732091504250,0.19100611,93054.0,93053.0,0.053676]
[1732091504557,0.19100611,93054.0,93048.0,0.414479]
[1732091504750,0.09456611,93053.0,93048.0,0.414479]
[1732091505061,0.06911595,93049.0,93048.0,0.414479]
[1732091505446,0.16368206,93049.0,93048.0,0.414479]
[1732091506360,0.29419071,93049.0,93048.0,0.414479]
[1732091506545,0.31983435,93049.0,93048.0,0.414479]
[1732091506751,0.20519031,93049.0,93048.0,0.3608]
[1732091506956,0.25725778,93049.0,93048.0,0.414479]
[1732091507146,0.20519031,93049.0,93048.0,0.414479]
[1732091507657,0.35205481,93049.0,93048.0,0.414479]
[1732091507860,0.46267901,93049.0,93048.0,0.414479]
[1732091508047,0.20519031,93049.0,93048.0,0.3608]
[1732091508765,0.27897715,93049.0,93048.0,0.3608]
[1732091509057,0.30927715,93049.0,93048.0,0.3608]
[1732091509258,0.17854411,93049.0,93048.0,0.3608]
[1732091509460,0.12486611,93049.0,93034.0,0.3608]
[1732091509760,0.06911595,93040.0,93034.0,0.3608]
[1732091510060,0.06911595,93035.0,93034.0,0.414487]
[1732091515466,0.06911595,93035.0,93034.0,0.053687]
[1732091515765,0.06911595,93035.0,93034.0,0.414487]
[1732091517151,0.09644,93039.0,93034.0,0.3608]
[1732091517353,0.09644,93039.0,93038.0,0.053685]
[1732091518059,0.09644,93039.0,93038.0,0.24581251]
[1732091518252,0.09644,93039.0,93038.0,0.053685]
[1732091518253,0.1392555,93039.0,93038.0,0.053685]
[1732091520261,0.09644,93039.0,93038.0,0.053685]
[1732091521972,0.06911595,93047.0,93046.0,0.05368]
[1732091522156,0.16555595,93047.0,93046.0,0.05368]
[1732091522479,0.20816525,93047.0,93046.0,0.05368]
[1732091523759,0.30250778,93047.0,93046.0,0.05368]
[1732091525374,0.20816525,93047.0,93046.0,0.05368]
[1732091525556,0.11172525,93047.0,93046.0,0.05368]
[1732091525758,0.1369693,93047.0,93046.0,0.05368]
[1732091525957,0.09436,93047.0,93046.0,0.05368]
[1732091526465,0.09436,93047.0,93046.0,0.24580751]
[1732091527165,0.09436,93047.0,93046.0,0.05368]
[1732091527758,0.06911595,93052.0,93051.0,0.053677]
[1732091529965,0.06911595,93058.0,93049.0,0.19202805]
[1732091530271,0.06911595,93058.0,93057.0,0.053674]
[1732091530460,0.20667377,93058.0,93057.0,0.053674]
[1732091530862,0.22816314,93058.0,93057.0,0.053674]
[1732091532083,0.1730786,93058.0,93057.0,0.053674]
[1732091532975,0.00556001,93073.0,93071.0,0.053666]
[1732091533273,0.09436,93073.0,93072.0,0.414465]
[1732091533985,0.13836472,93073.0,93072.0,0.414465]
[1732091534165,0.23335045,93073.0,93072.0,0.414465]
[1732091534470,0.3024664,93073.0,93072.0,0.414465]
[1732091535667,0.09498573,93073.0,93072.0,0.414465]
[1732091535880,0.09436,93074.0,93072.0,0.414465]
[1732091541067,0.09436,93076.0,93073.0,0.053664]
[1732091541372,0.09436,93076.0,93075.0,0.053663]
[1732091541670,0.09436,93078.0,93077.0,0.053662]
[1732091541864,0.06911595,93086.0,93073.0,0.06911595]
[1732091542060,0.09436,93085.0,93080.0,0.3608]
[1732091542266,0.09436,93085.0,93084.0,0.053658]
[1732091542864,0.11137634,93086.0,93085.0,0.053657]
[1732091543063,0.20569634,93086.0,93085.0,0.053657]
[1732091543277,0.20569634,93086.0,93080.0,0.3608]
[1732091543477,0.06911595,93081.0,93080.0,0.41446]
[1732091543870,0.06911595,93081.0,93080.0,0.3608]
[1732091544779,0.1382319,93081.0,93080.0,0.3608]
[1732091544987,0.2862119,93081.0,93080.0,0.3608]
[1732091545167,0.21709595,93081.0,93080.0,0.3608]
[1732091545367,0.2862119,93081.0,93080.0,0.3608]
[1732091547581,0.053665,93072.0,93071.0,0.005]
[1732091547784,0.053667,93069.0,93064.0,0.005]
[1732091547988,0.16343595,93081.0,93063.0,0.08557]
[1732091547989,0.06911595,93067.0,93066.0,0.053668]
[1732091548775,0.06911595,93067.0,93062.0,0.3608]
[1732091549284,0.053669,93065.0,93062.0,0.3608]
[1732091549476,0.06911595,93067.0,93062.0,0.3608]
[1732091551297,0.11236478,93067.0,93064.0,0.053669]
[1732091551505,0.11236478,93067.0,93062.0,0.3608]
[1732091551699,0.04324883,93067.0,93066.0,0.053668]
[1732091551995,0.09432,93068.0,93067.0,0.053668]
[1732091554193,0.005,93079.0,93078.0,0.053661]
[1732091554391,0.09444,93079.0,93078.0,0.414461]
[1732091554996,0.20521215,93079.0,93078.0,0.414461]
[1732091555198,0.30061928,93079.0,93078.0,0.414461]
[1732091557603,0.41474411,93079.0,93078.0,0.414461]
[1732091557995,0.18984713,93079.0,93078.0,0.414461]
[1732091558495,0.41474411,93079.0,93078.0,0.414461]
[1732091559505,0.18984713,93079.0,93078.0,0.414461]
[1732091560305,0.09540713,93079.0,93078.0,0.414461]
[1732091560499,0.20675522,93079.0,93078.0,0.414461]
[1732091560698,0.20675522,93079.0,93078.0,0.3608]
[1732091561507,0.04345355,93080.0,93079.0,0.053661]
[1732091561508,0.50833352,93080.0,93079.0,0.053661]
[1732091561693,0.46487997,93080.0,93079.0,0.053661]
[1732091561894,0.2075236,93080.0,93079.0,0.053661]
[1732091562092,0.3019636,93080.0,93079.0,0.053661]
[1732091562505,0.3019252,93080.0,93079.0,0.053661]
[1732091562705,0.28952592,93080.0,93079.0,0.09158944]
[1732091562900,0.28952592,93080.0,93079.0,0.06911595]
[1732091562901,0.2074852,93080.0,93079.0,0.06911595]
[1732091563103,0.09444,93081.0,93079.0,0.06911595]
[1732091563302,0.09444,93081.0,93080.0,0.05366]
[1732091563607,0.09444,93081.0,93080.0,0.11816]
[1732091564398,0.053655,93089.0,93080.0,0.0645]
[1732091564599,0.43019595,93091.0,93090.0,0.053655]
[1732091564600,0.06911595,93091.0,93090.0,0.053655]
[1732091564802,0.148094,93091.0,93090.0,0.053655]
[1732091565503,0.09444,93091.0,93090.0,0.053655]
[1732091565707,0.13725781,93091.0,93090.0,0.053655]
[1732091566100,0.04281781,93091.0,93090.0,0.053655]
[1732091566408,0.1,93100.0,93088.0,0.3608]
[1732091566409,0.0944,93095.0,93094.0,0.053652]
[1732091566800,0.1,93100.0,93099.0,0.053649]
[1732091567114,0.1944,93100.0,93099.0,0.053649]
[1732091569107,0.2368786,93100.0,93099.0,0.053649]
[1732091570413,0.18133728,93100.0,93099.0,0.053649]
[1732091575407,0.08693728,93100.0,93099.0,0.053649]
[1732091576405,0.08693728,93100.0,93097.0,0.3608]
[1732091576604,0.15605323,93100.0,93088.0,0.414455]
[1732091576809,0.06911595,93089.0,93088.0,0.3608]
[1732091578207,0.10961102,93089.0,93083.0,0.053658]
[1732091578406,0.06911595,93084.0,93083.0,0.053658]
[1732091578608,0.27774786,93084.0,93083.0,0.053658]
[1732091580709,0.57816417,93084.0,93083.0,0.053658]
[1732091581116,0.20931248,93084.0,93083.0,0.053658]
[1732091582123,0.20931248,93084.0,93078.0,0.053661]
[1732091582124,0.20396418,93084.0,93078.0,0.053661]
[1732091582328,0.06911595,93079.0,93075.0,0.0329]
[1732091582521,0.09119376,93078.0,93075.0,0.086563]
[1732091583124,0.09119376,93078.0,93076.0,0.053662]
[1732091584521,0.13369208,93078.0,93077.0,0.053662]
[1732091585212,0.04249832,93078.0,93077.0,0.053662]
[1732091585413,0.06911595,93079.0,93077.0,0.053662]
[1732091586028,0.06911595,93079.0,93078.0,0.053661]
[1732091589015,0.092,93080.0,93075.0,0.0329]
[1732091589327,0.092,93080.0,93079.0,0.053661]
[1732091590026,0.092,93080.0,93072.0,0.1919241]
[1732091590236,0.053666,93071.0,93070.0,0.1919241]
[1732091590430,0.12278195,93070.0,93067.0,0.053668]
[1732091591017,0.092,93069.0,93062.0,0.0321]
[1732091591212,0.092,93069.0,93058.0,0.0321]
[1732091591213,0.06911595,93063.0,93058.0,0.0321]
[1732091591419,0.12278595,93063.0,93058.0,0.0321]
[1732091592729,0.06911595,93063.0,93059.0,0.053672]
[1732091593225,0.06911595,93063.0,93058.0,0.0321]
[1732091593433,0.06911595,93063.0,93061.0,0.053671]
[1732091594825,0.04253453,93066.0,93064.0,0.053669]
[1732091595031,0.06911595,93066.0,93064.0,0.053669]
[1732091595524,0.16111595,93066.0,93064.0,0.053669]
[1732091595923,0.06911595,93066.0,93064.0,0.053669]
[1732091596129,0.092,93065.0,93064.0,0.053669]
[1732091598127,0.06911595,93066.0,93064.0,0.053669]
[1732091598324,0.06911595,93071.0,93069.0,0.053667]
[1732091598527,0.092,93076.0,93075.0,0.053663]
[1732091599827,0.092,93076.0,93070.0,0.0309]
[1732091599828,0.053663,93075.0,93070.0,0.0309]
[1732091600033,0.06911595,93071.0,93070.0,0.084566]
[1732091604144,0.06911595,93071.0,93065.0,0.5527241]
[1732091604439,0.06911595,93066.0,93065.0,0.3608]
[1732091604641,0.06911595,93066.0,93061.0,0.1919241]
[1732091604642,0.05367,93063.0,93061.0,0.1919241]
[1732091605039,0.092,93062.0,93059.0,0.1919241]
[1732091605338,0.36140001,93074.0,93069.0,0.053667]
[1732091605339,0.092,93070.0,93069.0,0.053667]
[1732091606949,0.16111595,93070.0,93069.0,0.053667]
[1732091607239,0.16111595,93070.0,93065.0,0.55365533]
[1732091607445,0.16111595,93070.0,93065.0,0.60628433]
[1732091607642,0.16111595,93070.0,93065.0,0.414469]
[1732091608153,0.16111595,93070.0,93066.0,0.053668]
[1732091608443,0.16111595,93070.0,93067.0,0.053668]
[1732091608444,0.22514041,93068.0,93067.0,0.053668]
[1732091608834,0.09395045,93068.0,93067.0,0.053668]
[1732091609032,0.22515922,93068.0,93067.0,0.053668]
[1732091609345,0.20274577,93068.0,93067.0,0.053668]
[1732091609547,0.09395045,93068.0,93067.0,0.053668]
[1732091609742,0.1087961,93068.0,93057.0,0.3608]
[1732091609941,0.1919029,93062.0,93057.0,0.3608]
[1732091610133,0.1473793,93061.0,93057.0,0.3608]
[1732091610334,0.0937083,93060.0,93057.0,0.3608]
[1732091611240,0.0937083,93059.0,93058.0,0.053673]
[1732091611441,0.0937083,93061.0,93058.0,0.053673]
[1732091611744,0.0937083,93060.0,93058.0,0.053673]
[1732091611940,0.0937083,93059.0,93058.0,0.053673]
[1732091612151,0.0937083,93061.0,93058.0,0.053673]
[1732091612935,0.0937083,93060.0,93058.0,0.053673]
[1732091613134,0.0937083,93059.0,93058.0,0.053673]
[1732091613348,0.32863523,93063.0,93058.0,0.053673]
[1732091613349,0.0937083,93062.0,93058.0,0.053673]
[1732091613545,0.0937083,93061.0,93059.0,0.053672]
[1732091613732,0.0937083,93060.0,93059.0,0.053672]
[1732091614144,0.31889007,93060.0,93059.0,0.053672]
[1732091614346,0.22518177,93060.0,93059.0,0.053672]
[1732091615440,0.10345346,93063.0,93059.0,0.053672]
[1732091615746,0.15712446,93063.0,93061.0,0.19197532]
[1732091616549,0.15712446,93063.0,93062.0,0.19197532]
[1732091617850,0.15712446,93063.0,93062.0,0.14207532]
[1732091618045,0.15712446,93063.0,93057.0,0.00104]
[1732091618046,0.053673,93058.0,93057.0,0.00104]
[1732091618234,0.145633,93058.0,93056.0,0.00161193]
[1732091619841,0.09196,93058.0,93056.0,0.00161193]
[1732091620146,0.053674,93057.0,93056.0,0.00161193]
[1732091622168,0.08650984,93058.0,93056.0,0.00161193]
[1732091622357,0.08650984,93058.0,93047.0,0.053679]
[1732091622358,0.053675,93054.0,93047.0,0.053679]
[1732091622546,0.10345346,93050.0,93047.0,0.053679]
[1732091623549,0.0970006,93049.0,93047.0,0.053679]
[1732091623758,0.1889606,93048.0,93047.0,0.053679]
[1732091626850,0.0970006,93048.0,93047.0,0.053679]
[1732091627046,0.1889606,93048.0,93047.0,0.053679]
[1732091629156,0.09751132,93048.0,93047.0,0.053679]
[1732091629361,0.04761132,93048.0,93047.0,0.053679]
[1732091629704,0.22518177,93057.0,93045.0,0.3608]
[1732091629860,0.22518177,93058.0,93057.0,0.053674]
[1732091630063,0.22518177,93059.0,93058.0,0.053673]
[1732091630372,0.09196,93062.0,93061.0,0.053671]
[1732091630768,0.04192318,93066.0,93065.0,0.053669]
[1732091631070,0.09196,93067.0,93066.0,0.053668]
[1732091631568,0.09196,93067.0,93056.0,0.3608]
[1732091631569,0.09196,93071.0,93058.0,0.10345346]
[1732091631758,0.49565259,93072.0,93071.0,0.053666]
[1732091631956,0.49505258,93072.0,93071.0,0.053666]
[1732091634579,0.13425258,93072.0,93071.0,0.053666]
[1732091636963,0.04229258,93072.0,93071.0,0.053666]
[1732091637168,0.09196,93073.0,93068.0,0.3608]
[1732091637471,0.09196,93073.0,93072.0,0.053665]
[1732091640476,0.13409227,93073.0,93072.0,0.053665]
[1732091642367,0.09196,93073.0,93072.0,0.053665]
[1732091642882,0.069076,93075.0,93074.0,0.053664]
[1732091645970,0.39044155,93075.0,93074.0,0.053664]
[1732091647182,0.27240456,93075.0,93074.0,0.053664]
[1732091647570,0.32606756,93075.0,93074.0,0.053664]
[1732091648075,0.4448376,93075.0,93074.0,0.053664]
[1732091648265,0.32606756,93075.0,93074.0,0.053664]
[1732091648670,0.27240456,93075.0,93074.0,0.053664]
[1732091649078,0.39120704,93075.0,93074.0,0.053664]
[1732091650080,0.44487004,93075.0,93069.0,0.053667]
[1732091650378,0.32638644,93074.0,93068.0,0.3608]
[1732091650581,0.10166428,93073.0,93072.0,0.053665]
[1732091650780,0.49712672,93075.0,93069.0,0.053667]
[1732091650980,0.32638644,93074.0,93068.0,0.3608]
[1732091651370,0.10166428,93073.0,93068.0,0.3608]
[1732091651681,0.10166428,93072.0,93071.0,0.053666]
[1732091651879,0.10166428,93074.0,93071.0,0.053666]
[1732091652084,0.10166428,93073.0,93071.0,0.053666]
[1732091652267,0.10251855,93072.0,93069.0,0.053667]
[1732091652472,0.29379816,93075.0,93069.0,0.053667]
[1732091652473,0.10251855,93071.0,93069.0,0.053667]
[1732091652768,0.29379816,93075.0,93068.0,0.3608]
[1732091652968,0.069076,93075.0,93073.0,0.053664]
[1732091654887,0.078476,93076.0,93073.0,0.053664]
[1732091655088,0.078476,93076.0,93074.0,0.053664]
[1732091656981,0.03540126,93076.0,93074.0,0.053664]
[1732091660292,0.04342629,93078.0,93076.0,0.053662]
[1732091660589,0.04342629,93078.0,93069.0,0.069076]
[1732091660590,0.08476,93080.0,93077.0,0.053662]
[1732091660777,0.08476,93080.0,93069.0,0.069076]
[1732091660778,0.10333328,93079.0,93078.0,0.053661]
[1732091661795,0.10333328,93079.0,93069.0,0.069076]
[1732091661796,0.053664,93073.0,93072.0,0.053665]
[1732091661994,0.19521328,93079.0,93075.0,0.053663]
[1732091661995,0.069076,93077.0,93075.0,0.053663]
[1732091662198,0.10328579,93076.0,93075.0,0.053663]
[1732091663392,0.069076,93077.0,93076.0,0.053663]
[1732091663691,0.09188,93079.0,93076.0,0.053663]
[1732091663895,0.10357751,93078.0,93076.0,0.053663]
[1732091664188,0.10352517,93077.0,93076.0,0.053663]
[1732091664398,0.09188,93079.0,93076.0,0.053663]
[1732091664692,0.103536,93078.0,93076.0,0.053663]
[1732091664989,0.103536,93077.0,93076.0,0.053663]
[1732091667081,0.26479853,93077.0,93076.0,0.053663]
[1732091667884,0.45048192,93077.0,93076.0,0.053663]
[1732091668289,0.52293141,93077.0,93076.0,0.053663]
[1732091668491,0.69220052,93077.0,93076.0,0.053663]
[1732091668688,0.52293141,93077.0,93074.0,0.053663]
[1732091668993,0.52293141,93077.0,93075.0,0.053663]
[1732091668994,0.36197541,93076.0,93075.0,0.053663]
[1732091671585,0.71639062,93076.0,93075.0,0.053663]
[1732091672281,0.22453822,93076.0,93075.0,0.122739]
[1732091672482,0.68295744,93076.0,93075.0,0.122739]
[1732091672701,0.10384253,93076.0,93075.0,0.483539]
[1732091673403,0.10384253,93076.0,93075.0,0.52624817]
[1732091673605,0.04843488,93094.0,93093.0,0.053653]
[1732091673897,0.04343488,93094.0,93093.0,0.053653]
[1732091674081,0.122728,93095.0,93094.0,0.053652]
[1732091674284,0.069076,93095.0,93094.0,0.053652]
[1732091674497,0.09188,93096.0,93095.0,0.053652]
[1732091674881,0.31724776,93096.0,93095.0,0.122728]
[1732091675098,0.19530326,93096.0,93095.0,0.122728]
[1732091675686,0.09188,93096.0,93095.0,0.122728]
[1732091676290,0.04445868,93100.0,93099.0,0.053649]
[1732091676485,0.04445868,93100.0,93099.0,0.414449]
[1732091676685,0.04445868,93100.0,93099.0,0.483525]
[1732091676899,0.04445868,93100.0,93099.0,1.914449]
[1732091677081,0.04445868,93100.0,93099.0,1.983525]
[1732091678298,0.04445868,93100.0,93099.0,2.052601]
[1732091679808,0.04445868,93100.0,93099.0,0.644361]
[1732091680096,0.04445868,93100.0,93099.0,0.483525]
[1732091681889,0.053644,93108.0,93099.0,0.429876]
[1732091682103,0.069076,93109.0,93099.0,0.429876]
[1732091682299,0.1130278,93113.0,93112.0,0.053642]
[1732091682493,0.069076,93113.0,93112.0,0.053642]
[1732091683599,0.069076,93113.0,93103.0,0.069076]
[1732091683600,0.32663916,93113.0,93103.0,0.069076]
[1732091683798,0.22428074,93108.0,93103.0,0.069076]
[1732091684000,0.10376472,93107.0,93105.0,0.053646]
[1732091684202,0.32804546,93107.0,93105.0,0.053646]
[1732091684397,0.10376472,93106.0,93105.0,0.053646]
[1732091685001,0.10376472,93106.0,93099.0,0.3608]
[1732091685301,0.053647,93103.0,93090.0,0.11217172]
[1732091685495,0.069076,93099.0,93090.0,0.11217172]
[1732091685695,0.10376472,93098.0,93097.0,0.053651]
[1732091686212,0.09732719,93098.0,93094.0,0.069076]
[1732091686398,0.122723,93103.0,93094.0,0.069076]
[1732091686594,0.09733168,93102.0,93099.0,0.053649]
[1732091686814,0.09733168,93101.0,93099.0,0.053649]
[1732091687110,0.09733168,93100.0,93099.0,0.053649]
[1732091687707,0.09733168,93100.0,93099.0,1.553649]
[1732091690910,0.0968472,93101.0,93100.0,0.053649]
[1732091691098,0.053648,93101.0,93100.0,0.053649]
[1732091691896,0.069076,93103.0,93100.0,0.053649]
[1732091692399,0.069076,93103.0,93101.0,0.053648]
[1732091692604,0.069076,93103.0,93099.0,1.50108]
[1732091692605,0.069076,93103.0,93102.0,0.053648]
[1732091697707,0.16638454,93103.0,93102.0,0.053648]
[1732091698298,0.39066528,93103.0,93102.0,0.053648]
[1732091698502,0.09730854,93103.0,93102.0,0.053648]
[1732091702017,0.09730854,93103.0,93102.0,0.09562368]
[1732091705317,0.09730854,93103.0,93102.0,0.15932368]
[1732091705820,0.005,93116.0,93115.0,0.05364]
[1732091706019,0.069076,93123.0,93114.0,0.069076]
[1732091706219,0.069076,93123.0,93122.0,0.053636]
[1732091706705,0.40525751,93124.0,93120.0,0.069076]
[1732091706900,0.4046975,93124.0,93120.0,0.069076]
[1732091707105,0.3608,93124.0,93123.0,0.053636]
[1732091708921,0.29826,93125.0,93123.0,0.053636]
[1732091709312,0.29826,93125.0,93124.0,0.099276]
[1732091710320,0.29826,93125.0,93124.0,0.168352]
[1732091710624,0.29826,93125.0,93124.0,1.759952]
[1732091710829,0.29826,93125.0,93124.0,1.690876]
[1732091712624,0.29826,93125.0,93124.0,1.759952]
[1732091712812,0.29826,93125.0,93124.0,1.690876]
[1732091714212,0.23836589,93125.0,93124.0,1.690876]
[1732091714827,0.23836589,93125.0,93124.0,1.759952]
[1732091715125,0.23836589,93125.0,93124.0,1.690876]
[1732091720527,0.23836589,93125.0,93124.0,1.7123407]
[1732091729631,0.23836589,93125.0,93124.0,2.4339407]
[1732091730025,0.23836589,93125.0,93124.0,2.5030167]
[1732091730238,0.23836589,93125.0,93124.0,2.4339407]
[1732091731125,0.23836589,93125.0,93124.0,2.3423407]
[1732091731331,0.23836589,93125.0,93124.0,2.4037407]
[1732091732131,0.23836589,93125.0,93124.0,2.4728167]
[1732091732432,0.0317,93145.0,93140.0,0.053626]
[1732091732625,4.291e-05,93148.0,93147.0,0.053622]
[1732091733026,4.291e-05,93148.0,93147.0,1.645222]
[1732091735331,4.291e-05,93148.0,93147.0,1.553622]
[1732091735537,4.291e-05,93148.0,93147.0,1.66606426]
[1732091738733,4.291e-05,93148.0,93147.0,1.75750426]
[1732091739237,4.291e-05,93148.0,93147.0,1.82658026]
[1732091739936,4.291e-05,93148.0,93147.0,1.75750426]
[1732091740543,4.291e-05,93148.0,93147.0,1.82658026]
[1732091740842,8.2e-07,93153.0,93152.0,0.053619]
[1732091741042,8.2e-07,93153.0,93152.0,0.552571]
[1732091742433,8.2e-07,93153.0,93152.0,0.644011]
[1732091742831,8.2e-07,93153.0,93152.0,0.89986605]
[1732091743026,8.2e-07,93153.0,93152.0,0.644011]
[1732091745050,0.02842595,93177.0,93176.0,0.053605]
[1732091745339,0.02842595,93177.0,93176.0,0.122681]
[1732091754243,0.00057124,93178.0,93177.0,0.053604]
[1732091757944,0.22485198,93178.0,93177.0,0.053604]
[1732091758153,0.10523807,93178.0,93177.0,0.053604]
[1732091760245,0.17431407,93178.0,93177.0,0.053604]
[1732091761261,0.22791807,93178.0,93177.0,0.053604]
[1732091761753,0.35063442,93178.0,93177.0,0.053604]
[1732091762345,0.29703042,93178.0,93177.0,0.053604]
[1732091763342,0.29993573,93178.0,93177.0,0.053604]
[1732091765650,0.3022509,93178.0,93177.0,0.053604]
[1732091765860,0.06964724,93178.0,93177.0,0.053604]
[1732091767062,0.12325124,93178.0,93177.0,0.053604]
[1732091767558,0.12325124,93178.0,93163.0,0.053612]
[1732091767559,0.13872324,93178.0,93169.0,0.19085759]
[1732091767743,0.053611,93165.0,93164.0,0.005]
[1732091767945,0.053615,93158.0,93156.0,0.005]
[1732091768146,0.053615,93158.0,93155.0,0.053617]
[1732091768349,0.053615,93158.0,93156.0,0.053617]
[1732091769650,0.053615,93158.0,93150.0,0.05362]
[1732091769651,0.122691,93158.0,93150.0,0.05362]
[1732091769858,0.053615,93158.0,93151.0,0.053619]
[1732091770054,0.053615,93158.0,93154.0,0.053618]
[1732091770952,0.09564482,93158.0,93155.0,0.053617]
[1732091771152,0.053615,93158.0,93156.0,0.053616]
[1732091771456,0.053615,93158.0,93157.0,1.50161004]
[1732091772858,0.16051929,93158.0,93157.0,1.50161004]
[1732091773059,0.3608,93160.0,93158.0,0.053615]
[1732091773661,0.084009,93170.0,93157.0,1.50265004]
[1732091773662,0.16452901,93161.0,93160.0,0.053614]
[1732091773856,0.10685988,93161.0,93160.0,0.053614]
[1732091774256,0.10685988,93161.0,93160.0,0.084114]
[1732091776165,0.069076,93169.0,93168.0,0.05361]
[1732091776770,0.17470615,93169.0,93168.0,0.05361]
[1732091779065,0.10563015,93169.0,93168.0,0.05361]
[1732091779266,0.10563015,93169.0,93164.0,0.069076]
[1732091779457,0.36140001,93172.0,93161.0,0.0327]
[1732091779458,0.10563015,93168.0,93161.0,0.0327]
[1732091779659,0.10563015,93167.0,93166.0,0.053611]
[1732091780166,0.10563015,93167.0,93161.0,0.0327]
[1732091780167,0.10568492,93167.0,93161.0,0.0327]
[1732091780365,0.36140001,93172.0,93161.0,0.0327]
[1732091780569,0.10568925,93171.0,93161.0,0.0327]
[1732091780764,0.3608,93172.0,93161.0,0.0327]
[1732091780765,0.17476288,93170.0,93161.0,0.0327]
[1732091780968,0.3608,93172.0,93171.0,0.053608]
[1732091782285,0.429876,93172.0,93171.0,0.053608]
[1732091783080,0.429876,93172.0,93166.0,0.053611]
[1732091783081,0.05361,93167.0,93166.0,0.053611]
[1732091783372,0.053613,93162.0,93161.0,0.053614]
[1732091783579,0.122689,93162.0,93161.0,0.053614]
[1732091785175,0.069076,93162.0,93161.0,0.053614]
[1732091786881,0.122689,93162.0,93161.0,0.053614]
[1732091787871,0.22827527,93162.0,93161.0,0.053614]
[1732091789880,0.22846026,93162.0,93161.0,0.053614]
[1732091792872,0.22846026,93162.0,93161.0,0.414414]
[1732091792873,0.17484726,93162.0,93161.0,0.414414]
[1732091793078,0.10577126,93162.0,93161.0,0.414414]
[1732091793979,0.25756316,93175.0,93168.0,0.05361]
[1732091793980,0.22482587,93169.0,93168.0,0.05361]
[1732091794179,0.10572979,93169.0,93161.0,0.414414]
[1732091794385,0.10572383,93168.0,93167.0,0.069076]
[1732091794589,0.0012677,93178.0,93177.0,0.053604]
[1732091795287,0.10698666,93178.0,93177.0,0.053604]
[1732091795874,0.0012677,93178.0,93177.0,0.053604]
[1732091801773,0.05435725,93185.0,93173.0,0.0305]
[1732091801978,0.05435725,93185.0,93183.0,0.053601]
[1732091802491,0.09752666,93185.0,93183.0,0.053601]
[1732091804391,0.04316941,93185.0,93183.0,0.053601]
[1732091804588,0.04316941,93185.0,93181.0,0.04256895]
[1732091804589,0.069076,93186.0,93185.0,0.0536]
[1732091807688,0.04393697,93187.0,93185.0,0.0536]
[1732091807888,0.00056168,93187.0,93185.0,0.0536]
[1732091808190,0.00056168,93187.0,93186.0,0.069076]
[1732091808381,0.00056168,93187.0,93186.0,0.122675]
[1732091810992,0.22622991,93187.0,93186.0,0.122675]
[1732091811597,0.22622991,93187.0,93186.0,0.155775]
[1732091812386,0.26911164,93187.0,93186.0,0.155775]
[1732091812896,0.26911164,93187.0,93186.0,0.100476]
[1732091813096,0.22622991,93187.0,93186.0,0.100476]
[1732091813393,0.1049871,93187.0,93186.0,0.154075]
[1732091813589,0.22519513,93187.0,93186.0,0.154075]
[1732091813990,0.1049871,93187.0,93186.0,0.154075]
[1732091814185,0.21680503,93187.0,93186.0,0.154075]
[1732091814393,0.25728418,93187.0,93186.0,0.154075]
[1732091814593,0.47352753,93187.0,93186.0,0.154075]
[1732091815190,0.21680503,93187.0,93186.0,0.154075]
[1732091815794,0.21680503,93187.0,93186.0,0.185175]
[1732091816196,0.22516419,93187.0,93186.0,0.185175]
[1732091816396,0.32958961,93187.0,93186.0,0.185175]
[1732091816592,0.22516419,93187.0,93186.0,0.185175]
[1732091816897,0.1049871,93187.0,93186.0,0.185175]
[1732091817498,0.32958495,93187.0,93186.0,0.185175]
[1732091817890,0.1049871,93187.0,93186.0,0.185175]
[1732091818089,0.00056168,93187.0,93186.0,0.185175]
[1732091819201,0.00056168,93187.0,93186.0,0.154075]
[1732091819395,0.00056168,93187.0,93186.0,0.122675]
[1732091821585,0.053602,93182.0,93181.0,0.0536]
[1732091821899,0.053602,93182.0,93176.0,0.005]
[1732091821900,0.3608,93184.0,93183.0,0.053601]
[1732091826507,0.4144,93184.0,93183.0,0.053601]
[1732091828100,0.3608,93184.0,93183.0,0.053601]
[1732091828300,0.00056168,93187.0,93181.0,0.069076]
[1732091828499,0.00056168,93187.0,93186.0,0.053599]
[1732091829086,0.05416068,93187.0,93186.0,0.053599]
[1732091830305,0.053604,93178.0,93177.0,0.005]
[1732091830599,0.053607,93172.0,93170.0,0.005]
[1732091830808,0.414407,93172.0,93165.0,0.30946605]
[1732091830995,0.57566267,93172.0,93166.0,0.053611]
[1732091831299,0.57566267,93172.0,93164.0,0.005]
[1732091831487,0.46022527,93172.0,93167.0,0.069076]
[1732091831691,0.3608,93172.0,93169.0,0.053609]
[1732091832402,0.40289245,93172.0,93169.0,0.053609]
[1732091832705,0.40289245,93172.0,93170.0,0.053608]
[1732091832904,0.40289245,93172.0,93171.0,0.053608]
[1732091834803,0.33915636,93172.0,93171.0,0.053608]
[1732091835194,0.29706391,93172.0,93171.0,0.053608]
[1732091835607,0.25715526,93173.0,93172.0,0.053607]
[1732091835812,0.25715526,93173.0,93172.0,0.122683]
[1732091836002,0.0912,93186.0,93172.0,0.122683]
[1732091836198,0.1348554,93186.0,93185.0,0.0536]
[1732091836598,0.2039314,93186.0,93185.0,0.0536]
[1732091836802,0.1348554,93186.0,93185.0,0.0536]
[1732091837314,0.09176168,93187.0,93186.0,0.053599]
[1732091838413,0.09176168,93187.0,93178.0,0.005]
[1732091838715,0.414403,93179.0,93178.0,0.058604]
[1732091838900,0.414403,93179.0,93178.0,0.053604]